fUSD/lending_fUSD_20240719
["ID","MTS","AMOUNT","RATE_DAILY","PERIOD"]
[332660400,1721407840756,-324.539,0.00034199,14]
[332660402,1721407840765,-500.0,0.00034199,14]
[332660404,1721407840774,-500.0,0.00034199,14]
[332660406,1721407840783,-621.77622389,0.00034199,14]
[332660408,1721407840793,-1000.0,0.00034199,14]
[332660410,1721407840802,-500.0,0.00034199,14]
[332660412,1721407840812,-700.04,0.00034199,14]
[332660414,1721407840821,-500.0,0.00034199,14]
[332660416,1721407840831,-417.47446984,0.00034199,14]
[332660418,1721407840844,-500.0,0.00034199,14]
[332660419,1721407840855,-500.0,0.00034199,14]
[332660420,1721407840864,-500.0,0.00034199,14]
[332660421,1721407840875,-500.0,0.00034199,14]
[332660422,1721407840888,-1500.0,0.00034199,14]
[332660423,1721407840898,-1500.0,0.00034199,15]
[332660424,1721407840907,-1500.0,0.00034199,16]
[332660425,1721407840916,-1500.0,0.00034199,17]
[332660426,1721407840925,-1500.0,0.00034199,18]
[332660427,1721407840935,-1500.0,0.00034199,19]
[332660428,1721407840945,-393.18939907,0.00034199,20]
[332660429,1721407840957,-1106.81060093,0.00034199,20]
[332660430,1721407840968,-1500.0,0.00034199,21]
[332660431,1721407840977,-1500.0,0.00034199,22]
[332660432,1721407840987,-1500.0,0.00034199,23]
[332660433,1721407841001,-1500.0,0.00034199,24]
[332660434,1721407841011,-1500.0,0.00034199,25]
[332660435,1721407841021,-1500.0,0.00034199,26]
[332660436,1721407841032,-1500.0,0.00034199,27]
[332660437,1721407841043,-1500.0,0.00034199,28]
[332660438,1721407841053,-628.3462055,0.00034199,29]
[332660439,1721407841065,-150.0,0.00034211,2]
[332660440,1721407841074,-9029.2632892,0.00034216,5]
[332660441,1721407841084,-644.9473778,0.00034226,5]
[332660442,1721407841093,-13044.54059247,0.00034226,5]
[332660443,1721407841105,-425.82705846,0.00034226,5]
[332660444,1721407841120,-3250.44823767,0.00034226,5]
[332660445,1721407841134,-150.0,0.0003423,2]
[332660446,1721407841143,-462.92601216,0.00034235,14]
[332660447,1721407841154,-500.0,0.00034235,14]
[332660448,1721407841163,-500.0,0.00034235,14]
[332660449,1721407841173,-163.43682692,0.00034235,14]
[332660450,1721407841183,-500.0,0.00034235,14]
[332660451,1721407841192,-20064.9790663,0.00034236,5]
[332660452,1721407841202,-153.16,0.00034236,2]
[332660453,1721407841212,-3039.72618568,0.00034236,5]
[332660454,1721407841224,-14945.15644671,0.00034236,5]
[332660455,1721407841235,-2063.9565768,0.00034236,5]
[332660456,1721407841719,-1812.53556712,0.00033172,15]
[332660457,1721407841729,-62072.64313791,0.00034236,5]
[332660458,1721407841827,-532.296,0.00034236,5]
[332660524,1721407843062,-155.0,0.0002679,2]
[332660525,1721407843072,-560.74229104,0.00028682,2]
[332660526,1721407843082,-40.33576966,0.00034236,5]
[332660527,1721407843120,-2580.675816,0.00034236,5]
[332660528,1721407843234,-30075.86418138,0.00034236,5]
[332660551,1721407843840,-296.96593765,0.00034236,5]
[332660554,1721407843852,-561.16661857,0.00034236,5]
[332660556,1721407843863,-836.92454964,0.00034236,5]
[332660558,1721407843873,-153.16,0.00034236,2]
[332660561,1721407843883,-153.16,0.00034236,2]
[332660564,1721407843892,-150.0,0.00034241,2]
[332660567,1721407843902,-37.49545036,0.00034242,2]
[332660570,1721407843913,-782.99628304,0.00034242,2]
[332660573,1721407843923,-2518.4986454,0.00034242,2]
[332660576,1721407843932,-842.9628194,0.00034242,2]
[332660579,1721407843942,-209.8748871,0.00034242,2]
[332660582,1721407843951,-404.50051742,0.00034243,2]
[332660584,1721407843961,-958.26684764,0.00034246,11]
[332660586,1721407843974,-3555.57475938,0.00034246,11]
[332660588,1721407843989,-660.04014289,0.00034246,11]
[332660801,1721407846070,-227.43774807,0.00027989,5]
[332660805,1721407846080,-50.26225193,0.00033095,30]
[332660810,1721407846091,-449.73774807,0.00033095,30]
[332660814,1721407846101,-500.0,0.00033287,33]
[332660817,1721407846111,-46.05988942,0.00033431,15]
[332660822,1721407846122,-1053.37357118,0.00033431,15]
[332660827,1721407846137,-650.05708826,0.00033431,15]
[332660923,1721407846642,-63.04501826,0.00033431,15]
[332660949,1721407846877,-389.40658174,0.00033479,36]
[332660951,1721407846894,-110.59341826,0.00033479,36]
[332660953,1721407846903,-500.0,0.00033671,39]
[332660954,1721407846913,-225.7812225,0.00033863,42]
[332660955,1721407846924,-274.2187775,0.00033863,42]
[332660956,1721407846934,-270.70721596,0.00034054,45]
[332660957,1721407846944,-4116.0002468,0.00034246,11]
[332660958,1721407846960,-10775.17408653,0.00034246,11]
[332660959,1721407846971,-817.32850703,0.00034246,11]
[332661040,1721408549858,150.0,0.00015,2]
[332661041,1721408600746,171.79324693,5e-05,2]
[332661055,1721408643760,155.14462349,0.00015,2]
[332661056,1721408646453,23.06212958,0.00015,2]
[332661057,1721408646477,325.86787042,0.00015,2]
[332661058,1721408647133,174.13212958,0.00015,2]
[332661059,1721408653567,500.0,5e-05,2]
[332661060,1721408653591,1171.08046936,5e-05,2]
[332661061,1721408653723,212.38486091,5e-05,2]
[332661062,1721408662618,616.53466973,5e-05,2]
[332661063,1721408662643,7747.42474307,5e-05,2]
[332661064,1721408669034,155.0,0.0001,2]
[332661065,1721408697517,155.0,6.061e-05,2]
[332661066,1721408707160,236051.03548815,5e-05,2]
[332661067,1721408708068,870.63292453,7.347e-05,2]
[332661068,1721408723124,236051.03548815,6.061e-05,2]
[332661070,1721408754704,171.79324693,5e-05,2]
[332661071,1721408757082,328.20675307,7.347e-05,2]
[332661072,1721408757104,542.42617146,7.347e-05,2]
[332661073,1721408761271,155.14462349,7.347e-05,2]
[332661074,1721408780809,1770.7950823,7.347e-05,2]
[332661075,1721408795081,870.63292453,7.347e-05,2]
[332661076,1721408835075,870.63292453,8.905e-05,2]
[332661077,1721408840625,174.13212958,8.905e-05,2]
[332661080,1721408886662,1500.0,0.00010794,2]
[332661081,1721408890070,870.63292453,8.905e-05,2]
[332661082,1721408891335,-237.31,0.00026769,120]
[332661102,1721409032165,-163.09,0.00014054,2]
[332661103,1721409032175,-1133.89145847,0.00014451,2]
[332661104,1721409032187,-545.15058203,0.00014451,2]
[332661105,1721409032197,-3834.18185265,0.00014451,2]
[332661106,1721409032209,-6421.8,0.00014451,2]
[332661107,1721409032293,-8292.04067167,0.00014451,2]
[332661108,1721409032303,-339.12293748,0.00014699,2]
[332661109,1721409032312,-317.55883624,0.00014799,2]
[332661110,1721409032322,-317.55883624,0.00014844,2]
[332661111,1721409032332,-317.55883624,0.00014888,2]
[332661112,1721409032341,-679.0,0.00014899,2]
[332661113,1721409032351,-348.93,0.00015,2]
[332661114,1721409032361,-617.62,0.00016126,2]
[332661115,1721409032374,-15457.78265303,0.0001647,2]
[332661116,1721409032386,-282.6689,0.00016698,2]
[332661117,1721409032396,-1877.64,0.00016864,2]
[332661118,1721409032407,-1553.52,0.00016907,2]
[332661119,1721409032417,-200.0,0.00017,2]
[332661120,1721409032426,-250.0,0.00017212,2]
[332661121,1721409032436,-1761.75637949,0.00017399,2]
[332661122,1721409032446,-304.55,0.00017477,2]
[332661123,1721409032456,-499.99,0.00017534,2]
[332661124,1721409032466,-852.31,0.00017535,2]
[332661125,1721409032476,-1235.29,0.0001756,2]
[332661126,1721409032485,-496.89,0.00017572,2]
[332661127,1721409032494,-300.0,0.00017844,2]
[332661128,1721409032504,-23900.0,0.00017845,2]
[332661129,1721409032513,-150.0,0.0001798,2]
[332661130,1721409032523,-1136.70475368,0.00018176,2]
[332661131,1721409032532,-755.89,0.00018284,2]
[332661133,1721409032542,-617.62,0.00018389,2]
[332661135,1721409032551,-367.23313419,0.00018599,2]
[332661137,1721409032560,-165.23,0.00018628,2]
[332661139,1721409032571,-843.46931393,0.00018897,2]
[332661141,1721409032583,-513.3213804,0.00018897,2]
[332661143,1721409032592,-367.23313419,0.00018898,2]
[332661144,1721409032601,-381.12988863,0.00018977,2]
[332661146,1721409032611,-891.21358226,0.00018977,2]
[332661147,1721409032621,-313.57105066,0.00018977,2]
[332661148,1721409032638,-121.66276268,0.00018977,2]
[332661149,1721409032647,-316.57266439,0.0001899,2]
[332661150,1721409032658,-75363.56457234,0.0001899,2]
[332661174,1721409038119,-279.80739725,0.00018599,2]
[332661176,1721409038129,-145.74260275,0.0001899,2]
[332661179,1721409038183,-68516.91120781,0.0001899,2]
[332661180,1721409038195,-21297.3192137,0.0001899,2]
[332661181,1721409038244,-17566.6419341,0.0001899,2]
[332661182,1721409038256,-9553.154996,0.0001899,2]
[332661187,1721409038550,-9084.2900005,0.0001899,2]
[332661188,1721409038562,-13724.235,0.0001899,2]
[332661189,1721409038574,-1384.75,0.0001899,2]
[332661190,1721409038586,-4471.69840341,0.0001899,2]
[332661191,1721409038595,-153.16,0.0001899,2]
[332661192,1721409038605,-153.16,0.0001899,2]
[332661194,1721409038615,-153.16,0.0001899,2]
[332661196,1721409038625,-753.93874398,0.00018997,2]
[332661197,1721409038634,-230.38285261,0.00018999,2]
[332661198,1721409038648,-208.83485614,0.00018999,2]
[332661199,1721409038657,-274.82514386,0.00018999,2]
[332661200,1721409038669,-417.37830761,0.00018999,2]
[332661201,1721409038678,-211.46343877,0.00018999,2]
[332661202,1721409038687,-250.0,0.00019,2]
[332661203,1721409038697,-673.15825362,0.00019,2]
[332661204,1721409038708,-428.61941707,0.00019,2]
[332661205,1721409038720,-310.24010705,0.00019,2]
[332661206,1721409038730,-792.39471921,0.00019,2]
[332661207,1721409038742,-5372.37762678,0.00019,2]
[332661211,1721409040193,-501.73880926,0.00016441,2]
[332661212,1721409042199,-14956.04384377,0.00016441,2]
[332661213,1721409042209,-48872.77975483,0.00019,2]
[332661214,1721409042311,-1806.87756984,0.00019,2]
[332661215,1721409042423,-219703.46244095,0.00019,2]
[332661216,1721409042434,-2120.5632,0.00019,2]
[332661217,1721409042446,-1387.70619631,0.00019,2]
[332661218,1721409042458,-415.87000001,0.00019,2]
[332661219,1721409042469,-469.26882658,0.00019,2]
[332661220,1721409042489,-1500.0,0.00019,2]
[332661221,1721409042500,-627.83,0.00019,2]
[332661222,1721409042511,-961.27203814,0.00019,2]
[332661223,1721409042558,-197.09,0.00019,2]
[332661224,1721409042606,-584.47445918,0.00019,2]
[332661225,1721409042617,-12814.6,0.00019,2]
[332661248,1721409043338,-312.14909766,0.00019,2]
[332661249,1721409043842,-3220.23564,0.00019,2]
[332661250,1721409043856,-626229.03065277,0.00019,2]
[332661251,1721409043866,-316.53023828,0.00019077,2]
[332661252,1721409043876,-157.37127731,0.00019177,2]
[332661253,1721409043886,-852.35,0.0001924,2]
[332661254,1721409043897,-2016.99,0.00019464,2]
[332661255,1721409043906,-237.31,0.00019468,2]
[332661256,1721409043916,-250.0,0.00019468,2]
[332661257,1721409043926,-296.92,0.00019599,2]
[332661258,1721409043935,-2040.67,0.00020176,2]
[332661259,1721409043946,-617.62,0.00020653,2]
[332661260,1721409043956,-1356.79069425,0.00020698,2]
[332661261,1721409043965,-1326.44739552,0.00020769,2]
[332661262,1721409043975,-1324.93,0.00020951,2]
[332661263,1721409043984,-300.0,0.00021,2]
[332661264,1721409043993,-208.68,0.00021072,2]
[332661265,1721409044002,-381.1298886,0.00021223,2]
[332661266,1721409044011,-180.0,0.00021397,2]
[332661267,1721409044020,-208.15,0.00021644,2]
[332661268,1721409044029,-237.31,0.00021902,2]
[332661269,1721409044039,-150.0,0.00021918,2]
[332661270,1721409044048,-892.445814,0.00022,5]
[332661271,1721409044057,-1356.79069425,0.00022499,2]
[332661272,1721409044066,-1326.44739552,0.00022561,2]
[332661273,1721409044076,-617.62,0.00022917,2]
[332661274,1721409044085,-350.0,0.00023,2]
[332661275,1721409044094,-381.1298886,0.00023469,2]
[332661276,1721409044103,-2000.0,0.00024,5]
[332661277,1721409044112,-1356.79069425,0.000243,2]
[332661278,1721409044122,-237.31,0.00024335,2]
[332661279,1721409044131,-1326.44739552,0.00024353,2]
[332661280,1721409044140,-308.78185671,0.00024899,2]
[332661281,1721409044153,-617.62,0.00025181,2]
[332661282,1721409044163,-381.1298886,0.00025715,2]
[332661283,1721409044172,-1356.79069425,0.00026101,2]
[332661284,1721409044182,-1326.44739552,0.00026145,2]
[332661285,1721409044191,-822.73,0.0002649,2]
[332661286,1721409044201,-254.90397989,0.00026769,2]
[332661287,1721409044210,-5587.0040499,0.00026788,3]
[332661288,1721409044219,-1293.69684138,0.0002679,2]
[332661289,1721409044228,-379.69463918,0.00026847,2]
[332661290,1721409044237,-617.62,0.00027445,2]
[332661291,1721409044247,-185.14617473,0.00027896,2]
[332661292,1721409044256,-1356.79069425,0.00027901,2]
[332661293,1721409044265,-1326.44739552,0.00027937,2]
[332661294,1721409044275,-381.1298886,0.00027962,2]
[332661295,1721409044284,-227.43774807,0.00027989,5]
[332661296,1721409044294,-150.56184343,0.0002818,2]
[332661297,1721409044303,-2040.67,0.00028246,2]
[332661298,1721409044312,-273.0,0.000288,5]
[332661299,1721409044321,-232.87,0.00029019,2]
[332661300,1721409044330,-237.31,0.00029202,120]
[332661301,1721409044339,-908.33,0.00029211,2]
[332661302,1721409044349,-500.0,0.00029314,2]
[332661303,1721409044358,-600.0,0.00029314,2]
[332661304,1721409044368,-500.0,0.00029314,2]
[332661305,1721409044380,-500.0,0.00029487,2]
[332661306,1721409044389,-157.49799236,0.00029584,2]
[332661307,1721409044403,-270.32837035,0.00029702,15]
[332661308,1721409044415,-712.04599,0.00029702,15]
[332661309,1721409044426,-374.4163339,0.00029702,15]
[332661310,1721409044435,-292.1641661,0.00029709,2]
[332661311,1721409044448,-325.4558339,0.00029709,2]
[332661312,1721409044458,-1326.44739552,0.00029729,15]
[332661313,1721409044467,-154.68067757,0.00029738,2]
[332661314,1721409044477,-155.0,0.00029762,2]
[332661315,1721409044486,-822.73,0.00029802,2]
[332661316,1721409044496,-213.74369267,0.00029862,2]
[332661317,1721409044507,-386.25630733,0.00029862,2]
[332661318,1721409044518,-154.66524596,0.00029973,2]
[332661319,1721409044528,-121.78858063,0.00029997,2]
[332661320,1721409044541,-255.18079136,0.00029997,2]
[332661321,1721409044551,-386.40920864,0.0003,4]
[332661323,1721409046198,-998.9403624,0.0003,4]
[332661324,1721409046209,-7124.59400119,0.0003,4]
[332661325,1721409046219,-5206.56014761,0.0003,4]
[332661326,1721409046231,-2990.50036596,0.0003,4]
[332661327,1721409046259,-500.0,0.0003,4]
[332661328,1721409046324,-2475.51637979,0.0003,4]
[332661329,1721409046335,-281.00881241,0.0003,4]
[332661330,1721409047584,-12074.3369917,0.0003,4]
[332661331,1721409047595,-669.87665648,0.0003,2]
[332661332,1721409047605,-381.1298886,0.00030208,2]
[332661333,1721409047614,-200.0,0.00030397,2]
[332661334,1721409047623,-600.0,0.0003041,10]
[332661335,1721409047632,-500.0,0.0003041,10]
[332661336,1721409047642,-500.0,0.0003041,10]
[332661337,1721409047654,-232.87,0.00030469,2]
[332661338,1721409047663,-1842.22,0.00030538,2]
[332661339,1721409047673,-200.0,0.00030808,2]
[332661340,1721409047683,-177.27,0.00030955,2]
[332661341,1721409047692,-600.0,0.00030958,10]
[332661342,1721409047702,-162.12,0.00031042,120]
[332661343,1721409047712,-1000.0,0.00031188,120]
[332661344,1721409047721,-810.71418452,0.00031208,2]
[332661345,1721409047733,-1981.0,0.00031208,2]
[332661346,1721409047745,-15876.04581548,0.00031208,2]
[332661347,1721409047754,-153.33226061,0.00031235,7]
[332661348,1721409047763,-184.74,0.00031276,120]
[332661349,1721409047773,-1866.0,0.000313,3]
[332661350,1721409047782,-1356.79069425,0.00031503,15]
[332661351,1721409047793,-600.0,0.00031506,10]
[332661352,1721409047803,-500.0,0.00031506,10]
[332661353,1721409047813,-500.0,0.00031506,10]
[332661354,1721409047823,-1326.44739552,0.00031521,15]
[332661355,1721409047833,-169.35308735,0.00031555,7]
[332661356,1721409047843,-168.83,0.00031693,2]
[332661357,1721409047853,-946.5561817,0.00031885,4]
[332661358,1721409047862,-232.87,0.0003192,2]
[332661359,1721409047872,-617.62,0.00031973,2]
[332661360,1721409047882,-1000.0,0.00032,22]
[332661361,1721409047892,-1000.0,0.00032,22]
[332661362,1721409047903,-154.81444551,0.00032147,7]
[332661363,1721409047912,-1169.75632855,0.00032447,2]
[332661364,1721409047922,-12853.57497956,0.00032447,4]
[332661365,1721409047931,-306.02874822,0.00032447,4]
[332661366,1721409047940,-381.1298886,0.00032454,2]
[332661367,1721409047949,-1001.0,0.000325,25]
[332661368,1721409047958,-600.0,0.00032602,10]
[332661369,1721409047967,-500.0,0.00032602,10]
[332661370,1721409047976,-500.0,0.00032602,10]
[332661371,1721409047986,-9049.4292,0.00032776,2]
[332661373,1721409047995,-1013.84,0.000328,2]
[332661375,1721409048004,-316.6,0.000328,2]
[332661376,1721409048013,-1019.95555735,0.00032849,4]
[332661378,1721409048023,-556.04422129,0.00032865,4]
[332661379,1721409048032,-178.55009373,0.00032872,4]
[332661380,1721409048041,-777.5897617,0.00032872,4]
[332661381,1721409048050,-648.70102982,0.00032872,4]
[332661382,1721409048059,-805.69207408,0.00032872,4]
[332661383,1721409048069,-417.91857322,0.00032874,4]
[332661384,1721409048078,-500.0,0.00032876,2]
[332661385,1721409048088,-150.0,0.00032877,2]
[332661386,1721409048097,-1500.0,0.000329,2]
[332661387,1721409048106,-901.43581672,0.000329,30]
[332661388,1721409048115,-1000.0,0.00033,25]
[332661389,1721409048124,-1000.0,0.00033,25]
[332661390,1721409048133,-1000.0,0.00033,27]
[332661391,1721409048143,-1024.0,0.00033,26]
[332661392,1721409048154,-417.12575315,0.00033,2]
[332661393,1721409048163,-500.0,0.00033013,2]
[332661394,1721409048173,-1195.8045,0.0003305,2]
[332661395,1721409048183,-2000.0,0.000331,9]
[332661396,1721409048192,-292.0,0.000331,22]
[332661397,1721409048201,-822.73,0.00033113,2]
[332661398,1721409048210,-500.0,0.0003315,2]
[332661399,1721409048220,-500.0,0.00033227,14]
[332661400,1721409048229,-223.18627814,0.00033227,14]
[332661401,1721409048239,-500.0,0.00033287,2]
[332661402,1721409048248,-1356.79069425,0.00033304,15]
[332661403,1721409048257,-1326.44739552,0.00033313,15]
[332661404,1721409048267,-371.3,0.00033364,14]
[332661405,1721409048276,-232.87,0.00033371,2]
[332661406,1721409048286,-5023.82303407,0.000334,10]
[332661407,1721409048295,-154.66524597,0.00033402,7]
[332661408,1721409048306,-500.0,0.00033424,2]
[332661409,1721409048315,-1000.0,0.000335,27]
[332661410,1721409048325,-500.0,0.00033561,2]
[332661411,1721409048335,-500.0,0.00033564,14]
[332661412,1721409048344,-575.36,0.00033564,14]
[332661413,1721409048354,-500.0,0.00033564,14]
[332661414,1721409048363,-320.16813828,0.00033564,14]
[332661415,1721409048376,-500.0,0.00033564,14]
[332661416,1721409048385,-292.0,0.000336,22]
[332661417,1721409048396,-600.0,0.00033698,10]
[332661418,1721409048406,-500.0,0.00033698,2]
[332661419,1721409048417,-500.0,0.00033698,10]
[332661420,1721409048426,-500.0,0.00033701,14]
[332661421,1721409048435,-500.0,0.00033701,14]
[332661422,1721409048446,-500.0,0.00033835,2]
[332661423,1721409048456,-500.0,0.00033838,14]
[332661424,1721409048466,-500.0,0.00033838,14]
[332661425,1721409048475,-416.26929,0.0003389,2]
[332661426,1721409048484,-16125.0,0.00033902,2]
[332661427,1721409048494,-17535.26949678,0.0003391,2]
[332661428,1721409048503,-500.0,0.00033921,10]
[332661429,1721409048514,-500.0,0.00033972,2]
[332661430,1721409048524,-500.0,0.00033975,14]
[332661431,1721409048533,-500.0,0.00033975,14]
[332661432,1721409048543,-1000.0,0.00034,27]
[332661433,1721409048552,-1000.0,0.00034,27]
[332661434,1721409048562,-15000.0,0.00034,35]
[332661435,1721409048573,-1061.69,0.00034055,2]
[332661436,1721409048583,-304.67,0.00034055,2]
[332661437,1721409048593,-760.46,0.00034055,2]
[332661438,1721409048602,-2000.0,0.000341,12]
[332661439,1721409048612,-292.0,0.000341,23]
[332661440,1721409048622,-500.0,0.00034109,2]
[332661441,1721409048636,-1013.84,0.0003411,2]
[332661442,1721409048648,-316.6,0.0003411,2]
[332661443,1721409048658,-500.0,0.00034112,14]
[332661444,1721409048667,-500.0,0.00034112,14]
[332661445,1721409048677,-5666.0309,0.00034135,2]
[332661446,1721409048686,-2856.108,0.00034136,2]
[332661447,1721409048696,-189.36040398,0.00034146,2]
[332661448,1721409048705,-278.1712557,0.00034146,2]
[332661449,1721409048715,-832.89,0.00034179,2]
[332661450,1721409048724,-800.0,0.00034184,31]
[332661451,1721409048734,-153.16,0.00034235,2]
[332661452,1721409048744,-153.16,0.00034236,2]
[332661453,1721409048754,-153.16,0.00034236,2]
[332661454,1721409048766,-153.16,0.00034236,2]
[332661455,1721409048776,-617.62,0.00034237,2]
[332661456,1721409048786,-839.4995485,0.00034242,2]
[332661457,1721409048795,-683.7431111,0.00034242,2]
[332661458,1721409048805,-376.96937199,0.00034243,2]
[332661459,1721409048815,-24062.79081734,0.00034245,2]
[332661460,1721409048828,-2377.93226991,0.00034245,2]
[332661461,1721409048841,-3320.17638618,0.00034245,2]
[332661495,1721409908048,1473703.80840754,0.00014,2]
[332661496,1721409908089,1000000.0,0.00014,2]
[332661497,1721409908122,1989123.21511437,0.00014,2]
[332661498,1721409908151,2000000.0,0.00014,2]
[332661499,1721409908181,613614.61884479,0.00014,2]
[332661500,1721409929127,71577.4120356,0.000118,2]
[332661501,1721409935863,10876.78488563,0.00011,2]
[332661502,1721409955846,105967.77836427,0.0001358,2]
[332661503,1721409956319,159.36297291,6.94e-05,2]
[332661508,1721410075686,870.63292453,6.94e-05,2]
[332661509,1721410081866,938.66165976,0.0001,2]
[332661510,1721410082827,7500.59650236,0.00013,2]
[332661511,1721410084824,16109.84653271,0.00013999,2]
[332661513,1721410091477,588.84694025,0.0001251,2]
[332661516,1721410119613,210.495076,0.0001,2]
[332661517,1721410130144,870.63292453,8.412e-05,2]
[332661561,1721410190146,870.63292453,0.00012121,2]
[332661580,1721410231638,-635.3687986,0.000146,2]
[332661590,1721410231866,-162.4774014,0.000146,2]
[332661591,1721410231875,-107.78847087,0.000149,2]
[332661592,1721410231900,-451.86030213,0.000149,2]
[332661593,1721410231909,-300.0,0.00014999,2]
[332661594,1721410231922,-577.4237256,0.00015,2]
[332661597,1721410231933,-397.82076205,0.00015,2]
[332661599,1721410231945,-281.77158958,0.00015,2]
[332661601,1721410231961,-3189.35,0.00015,2]
[332661604,1721410231973,-865.31617129,0.00015,2]
[332661606,1721410231986,-271.05628702,0.00015,2]
[332661608,1721410231997,-3000.0,0.00015,2]
[332661610,1721410232008,-12482.40973374,0.00015,2]
[332661612,1721410232021,-420.98804803,0.00015,2]
[332661615,1721410232032,-10207.04985645,0.00015,2]
[332661617,1721410232043,-3172.58921,0.00015,2]
[332661658,1721410237430,-952.57554,0.00015,2]
[332661661,1721410237446,-328.92787868,0.00015,2]
[332661665,1721410237535,-620.0,0.00015,2]
[332661666,1721410237627,-544.57763909,0.00015,2]
[332661667,1721410237639,-341.87113529,0.00015,2]
[332661668,1721410237650,-955.27057878,0.00015,2]
[332661669,1721410237661,-362.26611065,0.00015,2]
[332661670,1721410237672,-526.07957864,0.00015,2]
[332661671,1721410237769,-275.96458678,0.00015,2]
[332661672,1721410237780,-1235.47644,0.00015,2]
[332661673,1721410237793,-3185.485254,0.00015,2]
[332661709,1721410239481,-606.53961336,0.00015,2]
[332661710,1721410239493,-1506.5208876,0.00015,2]
[332661711,1721410239504,-698.15169301,0.00015,2]
[332661712,1721410239576,-16208.00855637,0.00015,2]
[332661713,1721410239590,-420.0,0.00016416,2]
[332661714,1721410239600,-167.34,0.00017477,2]
[332661715,1721410239609,-1556.34,0.00019726,2]
[332661716,1721410239620,-15457.78265303,0.00020899,2]
[332661717,1721410239630,-167.34,0.00021846,2]
[332661718,1721410239639,-320.0,0.00023,10]
[332661719,1721410239649,-909.62085616,0.00023873,2]
[332661720,1721410239659,-15205.67736081,0.00024,3]
[332661721,1721410239668,-496.36558952,0.00024124,2]
[332661722,1721410239678,-2498.02656989,0.00024124,2]
[332661723,1721410239687,-170.53,0.00024465,2]
[332661724,1721410239698,-392.82427499,0.00024979,2]
[332661725,1721410239708,-528.88570101,0.00024989,2]
[332661726,1721410239717,-359.5833827,0.00024989,2]
[332661727,1721410239727,-271.57249973,0.00024989,2]
[332661728,1721410239737,-308.78185671,0.00024989,2]
[332661729,1721410239747,-547.43374066,0.00024989,2]
[332661730,1721410239759,-648.39905615,0.00024999,2]
[332661731,1721410239769,-795.56529062,0.00025187,2]
[332661732,1721410239780,-280.3509828,0.00025187,2]
[332661733,1721410239796,-176.08372658,0.00025187,2]
[332661734,1721410239806,-1661.0,0.00025187,2]
[332661735,1721410239816,-2521.69,0.00025187,2]
[332661736,1721410239828,-374.003,0.00025187,2]
[332661737,1721410239839,-361.0,0.00025187,2]
[332661738,1721410239849,-1829.0,0.00025187,2]
[332661739,1721410239859,-8599.322,0.00025187,2]
[332661740,1721410239868,-301.463,0.00025187,2]
[332661741,1721410239880,-167.34,0.00026215,2]
[332661742,1721410239890,-250.0,0.00026847,2]
[332661743,1721410239900,-150.56184343,0.00027254,2]
[332661744,1721410239910,-162.12,0.00028599,120]
[332661745,1721410239919,-412.03,0.00028603,2]
[332661746,1721410239929,-500.0,0.00028619,2]
[332661747,1721410239940,-500.0,0.00029314,2]
[332661748,1721410239950,-500.0,0.00029314,2]
[332661749,1721410239960,-8509.94357223,0.0003,4]
[332661750,1721410239970,-500.0,0.0003041,10]
[332661751,1721410239980,-500.0,0.0003041,10]
[332661752,1721410239991,-182.29,0.00030454,120]
[332661753,1721410240001,-200.0,0.00030478,2]
[332661754,1721410240010,-150.0,0.00030534,2]
[332661755,1721410240020,-211.29,0.00030534,2]
[332661756,1721410240029,-329.09,0.00030543,2]
[332661757,1721410240039,-941.97,0.00030632,2]
[332661758,1721410240048,-23900.0,0.00030688,2]